bitfinex-derivatives/quotes_BNBF0:USTF0_20250715
["timestamp","ask_amount","ask_price","bid_price","bid_amount"]
[1752553136346,0.98578512,680.47,679.67,0.97279375]
[1752553137647,0.98578512,680.46,679.69,0.97279375]
[1752553138341,0.98578512,680.45,679.71,0.97279375]
[1752553138546,0.98578512,680.44,679.71,0.97279375]
[1752553140943,0.98578512,680.43,679.71,0.97279375]
[1752553141148,0.98578512,680.44,679.72,0.97279375]
[1752553141743,0.98578512,680.45,679.72,0.97279375]
[1752553142548,0.98578512,680.45,679.73,0.97279375]
[1752553142745,0.98578512,680.44,679.73,0.97279375]
[1752553143548,1.3089608,680.61,679.56,1.3025134]
[1752553143748,0.25566992,681.02,678.8,0.25587106]
[1752553148851,0.98936048,680.39,679.61,1.300143]
[1752553149050,0.98936048,680.39,679.76,0.9751073]
[1752553149254,0.98936048,680.42,679.73,0.9751073]
[1752553149454,0.98936048,680.43,679.74,0.9751073]
[1752553151051,0.98936048,680.42,679.74,0.9751073]
[1752553153256,0.98936048,680.45,679.77,0.9751073]
[1752553153456,0.98936048,680.46,679.77,0.9751073]
[1752553153657,0.98936048,680.47,679.78,0.9751073]
[1752553153953,0.98936048,680.47,679.79,0.9751073]
[1752553154152,0.98936048,680.48,679.79,0.9751073]
[1752553155854,0.98936048,680.49,679.8,0.9751073]
[1752553156158,0.98936048,680.51,679.82,0.9751073]
[1752553157459,0.98936048,680.5,679.8,0.9751073]
[1752553157759,0.98936048,680.49,679.8,0.9751073]
[1752553158156,0.98936048,680.46,679.82,0.9751073]
[1752553160155,0.98936048,680.45,679.83,0.9751073]
[1752553161360,0.98936048,680.44,679.84,0.9751073]
[1752553161958,0.98936048,680.45,679.83,0.9751073]
[1752553162563,0.98936048,680.44,679.84,0.9751073]
[1752553163062,0.98936048,680.45,679.84,0.9751073]
[1752553163260,0.98936048,680.42,679.82,0.9751073]
[1752553163559,0.98936048,680.41,679.83,0.9751073]
[1752553164163,0.98936048,680.42,679.82,0.9751073]
[1752553164363,0.98936048,680.41,679.83,0.9751073]
[1752553166258,0.98936048,680.4,679.84,0.9751073]
[1752553167062,0.98936048,680.39,679.84,0.9751073]
[1752553167264,0.98936048,680.46,679.8,0.9751073]
[1752553170165,0.98936048,680.45,679.8,0.9751073]
[1752553170365,0.98936048,680.45,679.81,0.9751073]
[1752553171365,0.98936048,680.45,679.62,1.300143]
[1752553171366,0.98936048,680.43,679.78,0.9751073]
[1752553172562,0.98936048,680.43,679.79,0.9751073]
[1752553173368,0.98936048,680.44,679.81,0.9751073]
[1752553173567,0.98936048,680.45,679.8,0.9751073]
[1752553176471,0.98936048,680.38,679.85,0.9751073]
[1752553179770,0.98936048,680.38,679.86,0.9751073]
[1752553179970,0.98936048,680.38,679.88,0.9751073]
[1752553180269,0.98936048,680.49,679.99,0.9751073]
[1752553180468,0.98936048,680.5,679.98,0.9751073]
[1752553180670,0.98936048,680.44,679.92,0.9751073]
[1752553181066,1.3191473,680.58,679.79,1.300143]
[1752553181267,0.99061111,680.44,679.92,0.97587373]
[1752553181569,0.99061111,680.51,679.99,0.97587373]
[1752553181870,0.99061111,680.5,679.99,0.97587373]
[1752553182165,0.99061111,680.51,679.99,0.97587373]
[1752553182370,0.99061111,680.55,679.96,0.97587373]
[1752553182569,0.99061111,680.59,680.0,0.97587373]
[1752553183267,0.99061111,680.57,679.98,0.97587373]
[1752553183467,0.99061111,680.58,679.97,0.97587373]
[1752553184673,0.99061111,680.59,679.96,0.97587373]
[1752553185775,0.99061111,680.6,679.96,0.97587373]
[1752553186472,0.99061111,680.6,679.95,0.97587373]
[1752553187277,0.99061111,680.61,679.95,0.97587373]
[1752553187572,0.99061111,680.62,679.94,0.97587373]
[1752553188273,0.99061111,680.66,679.91,0.97587373]
[1752553188578,0.99061111,680.67,679.9,0.97587373]
[1752553189578,0.99061111,680.68,679.91,0.97587373]
[1752553190378,0.99061111,680.69,679.9,0.97587373]
[1752553191878,0.99061111,680.7,679.9,0.97587373]
[1752553192277,0.99061111,680.68,679.9,0.97587373]
[1752553192478,0.99061111,680.69,679.9,0.97587373]
[1752553193476,0.99061111,680.7,679.89,0.97587373]
[1752553193881,0.99061111,680.7,679.88,0.97587373]
[1752553194381,0.99061111,680.71,679.87,0.97587373]
[1752553194577,0.99061111,680.69,679.89,0.97587373]
[1752553196283,0.99061111,680.68,679.88,0.97587373]
[1752553197179,0.99061111,680.69,679.88,0.97587373]
[1752553198382,0.99061111,680.62,679.88,0.97587373]
[1752553198684,0.99061111,680.47,679.72,0.97587373]
[1752553199485,0.99061111,680.46,679.72,0.97587373]
[1752553199781,0.99061111,680.47,679.72,0.97587373]
[1752553200484,0.99061111,680.47,679.73,0.97587373]
[1752553200784,0.99061111,680.53,679.78,0.97587373]
[1752553201286,0.99061111,680.66,679.9,0.97587373]
[1752553201583,0.99061111,680.8,679.92,0.97587373]
[1752553201785,0.99061111,680.86,679.98,0.97587373]
[1752553202186,0.99061111,680.87,679.97,0.97587373]
[1752553202387,0.99061111,680.85,679.96,0.97587373]
[1752553202585,0.99061111,680.84,679.95,0.97587373]
[1752553203486,0.99061111,680.82,679.91,0.97587373]
[1752553204286,0.99061111,680.82,679.9,0.97587373]
[1752553204686,0.99061111,680.82,679.91,0.97587373]
[1752553204887,0.99061111,680.78,679.94,0.97587373]
[1752553205187,0.99061111,680.78,679.93,0.97587373]
[1752553207187,0.99061111,680.78,679.92,0.97587373]
[1752553207886,0.99061111,680.78,679.93,0.97587373]
[1752553208486,0.99061111,680.82,680.0,0.97587373]
[1752553208986,0.99061111,680.81,680.0,0.97587373]
[1752553209590,2.23435702,681.13,680.01,0.97587373]
[1752553209591,0.99061111,680.82,680.01,0.97587373]
[1752553210189,0.99061111,680.82,680.0,0.97587373]
[1752553211185,0.99061111,680.83,680.0,0.97587373]
[1752553211891,1.3191473,680.99,680.0,0.97587373]
[1752553211892,0.99061111,680.82,680.0,0.97587373]
[1752553212291,0.99061111,680.83,679.99,0.97587373]
[1752553212791,0.99061111,680.83,680.0,0.97587373]
[1752553212993,0.99061111,680.84,680.0,0.97587373]
[1752553213287,0.99061111,680.84,679.83,1.300143]
[1752553213288,0.99061111,680.85,679.99,0.97587373]
[1752553213888,0.99061111,680.84,679.99,0.97587373]
[1752553214391,0.99061111,680.85,679.99,0.97587373]
[1752553214890,0.99061111,680.84,679.99,0.97587373]
[1752553215286,0.99061111,680.85,679.99,0.97587373]
[1752553216495,0.99061111,680.85,679.83,1.300143]
[1752553216496,0.99061111,680.85,679.98,0.97587373]
[1752553217997,0.99061111,680.85,679.82,1.300143]
[1752553217998,0.99061111,680.84,679.99,0.97587373]
[1752553218199,0.99061111,680.81,680.0,0.97587373]
[1752553218594,0.99061111,680.8,680.01,0.97587373]
[1752553221094,0.99061111,680.81,680.0,0.97587373]
[1752553222698,0.99061111,680.79,680.01,0.97587373]
[1752553223001,0.99061111,680.8,680.0,0.97587373]
[1752553223400,0.99061111,680.81,680.0,0.97587373]
[1752553224111,0.99061111,680.83,680.01,0.97587373]
[1752553224408,0.99061111,680.89,680.06,0.97587373]
[1752553225109,0.99061111,680.9,680.06,0.97587373]
[1752553226209,0.99061111,680.88,680.04,0.97587373]
[1752553226611,0.99061111,680.89,680.04,0.97587373]
[1752553226811,0.99061111,680.88,680.04,0.97587373]
[1752553227008,0.99061111,680.85,680.02,0.97587373]
[1752553227512,0.99061111,680.81,679.98,0.97587373]
[1752553228409,0.99061111,680.81,679.99,0.97587373]
[1752553228611,0.99061111,680.82,679.99,0.97587373]
[1752553229012,0.99061111,680.81,679.98,0.97587373]
[1752553229208,0.99061111,680.81,679.99,0.97587373]
[1752553229412,1.3191473,680.96,679.84,1.300143]
[1752553229611,0.9860152,680.81,679.99,0.97224137]
[1752553230411,0.9860152,680.82,679.98,0.97224137]
[1752553231411,0.9860152,680.82,679.99,0.97224137]
[1752553231715,0.9860152,680.82,679.98,0.97224137]
[1752553232316,0.9860152,680.82,679.99,0.97224137]
[1752553233411,0.9860152,680.81,680.0,0.97224137]
[1752553233916,0.9860152,680.84,679.98,0.97224137]
[1752553234418,0.9860152,680.89,679.95,0.97224137]
[1752553234615,0.9860152,680.9,679.96,0.97224137]
[1752553234914,1.24165132,681.13,680.03,0.97224137]
[1752553235218,1.24165132,681.13,680.02,0.97224137]
[1752553235519,0.9860152,681.12,680.03,0.97224137]
[1752553235815,1.24165132,681.13,680.03,0.97224137]
[1752553236216,1.24165132,681.13,680.02,0.97224137]
[1752553236518,0.9860152,681.1,680.05,0.97224137]
[1752553237218,0.9860152,681.09,680.05,0.97224137]
[1752553237417,0.9860152,681.09,679.35,0.25563987]
[1752553237418,0.9860152,681.08,680.06,0.97224137]
[1752553238420,0.9860152,681.09,680.06,0.97224137]
[1752553238716,0.9860152,681.08,680.07,0.97224137]
[1752553238920,0.9860152,681.03,680.1,0.97224137]
[1752553239420,0.9860152,681.03,680.11,0.97224137]
[1752553239721,0.9860152,681.02,680.11,0.97224137]
[1752553239918,0.9860152,681.01,680.12,0.97224137]
[1752553241322,0.9860152,681.0,680.12,0.97224137]
[1752553241520,0.9860152,681.0,680.13,0.97224137]
[1752553241722,0.9860152,680.97,680.14,0.97224137]
[1752553242224,0.9860152,680.98,680.14,0.97224137]
[1752553242420,0.9860152,680.97,680.14,0.97224137]
[1752553242624,0.9860152,680.91,680.19,0.97224137]
[1752553243325,0.9860152,680.91,680.18,0.97224137]
[1752553243926,0.9860152,680.94,680.16,0.97224137]
[1752553244424,0.9860152,680.95,680.16,0.97224137]
[1752553244622,0.9860152,680.94,680.16,0.97224137]
[1752553244926,0.9860152,680.95,680.16,0.97224137]
[1752553246129,0.9860152,681.0,680.12,0.97224137]
[1752553246327,0.9860152,681.03,680.1,0.97224137]
[1752553246525,0.9860152,681.04,680.11,0.97224137]
[1752553247125,0.9860152,681.05,680.11,0.97224137]
[1752553247331,0.9860152,681.05,680.1,0.97224137]
[1752553247529,0.9860152,681.05,680.11,0.97224137]
[1752553248330,0.9860152,681.04,680.11,0.97224137]
[1752553248931,0.9860152,681.04,679.91,1.300143]
[1752553248932,0.9860152,680.98,680.15,0.97224137]
[1752553249132,0.9860152,680.97,680.16,0.97224137]
[1752553249333,0.9860152,680.97,680.15,0.97224137]
[1752553250433,0.9860152,680.98,680.15,0.97224137]
[1752553250630,0.9860152,680.96,680.16,0.97224137]
[1752553250929,0.9860152,680.97,680.16,0.97224137]
[1752553251129,0.9860152,680.97,680.0,1.300143]
[1752553251130,0.9860152,680.97,680.15,0.97224137]
[1752553251631,0.9860152,680.96,680.16,0.97224137]
[1752553251838,0.9860152,681.0,680.2,0.97224137]
[1752553252032,0.9860152,681.02,680.21,0.97224137]
[1752553252733,0.25554038,681.42,680.05,1.300143]
[1752553252734,0.9860152,681.13,680.23,0.97224137]
[1752553252931,0.9860152,681.14,680.25,0.97224137]
[1752553253234,0.9860152,681.14,680.07,1.300143]
[1752553253235,0.9860152,681.14,680.24,0.97224137]
[1752553254836,0.9860152,681.15,680.24,0.97224137]
[1752553255236,0.9860152,681.15,680.23,0.97224137]
[1752553256033,0.9860152,681.21,680.29,0.97224137]
[1752553256333,0.9860152,681.21,680.28,0.97224137]
[1752553256634,0.9860152,681.2,680.3,0.97224137]
[1752553257238,0.9860152,681.2,680.29,0.97224137]
[1752553258236,0.9860152,681.22,680.29,0.97224137]
[1752553258436,0.9860152,681.21,680.3,0.97224137]
[1752553259140,0.9860152,681.22,680.3,0.97224137]
[1752553259337,0.9860152,681.22,680.29,0.97224137]
[1752553259642,0.9860152,681.21,680.31,0.97224137]
[1752553260041,0.9860152,681.2,680.3,0.97224137]
[1752553260538,0.9860152,681.23,680.28,0.97224137]
[1752553260844,0.9860152,681.2,680.25,0.97224137]
[1752553261042,0.9860152,681.21,680.24,0.97224137]
[1752553261444,0.9860152,681.21,680.25,0.97224137]
[1752553261745,0.9860152,681.2,680.25,0.97224137]
[1752553262241,0.9860152,681.19,680.25,0.97224137]
[1752553262648,0.9860152,681.18,680.25,0.97224137]
[1752553262842,0.9860152,681.15,680.27,0.97224137]
[1752553264149,0.25554038,681.42,679.95,1.9502146]
[1752553264341,0.25554038,681.42,679.35,0.25563987]
[1752553268346,0.98593405,681.03,680.12,0.97073251]
[1752553268758,0.98593405,681.04,680.12,0.97073251]
[1752553272056,0.98593405,681.03,680.13,0.97073251]
[1752553272260,0.98593405,681.02,680.13,0.97073251]
[1752553272957,0.98593405,681.02,680.14,0.97073251]
[1752553273258,0.98593405,681.03,680.13,0.97073251]
[1752553273761,0.98593405,681.04,680.13,0.97073251]
[1752553273962,0.98593405,681.05,680.12,0.97073251]
[1752553274658,0.25554038,681.42,679.35,0.25563987]
[1752553274659,0.98593405,681.04,680.13,0.97073251]
[1752553274862,0.98593405,681.05,680.13,0.97073251]
[1752553275060,0.98593405,681.04,680.13,0.97073251]
[1752553276963,0.98593405,681.05,680.14,0.97073251]
[1752553277163,0.98593405,681.03,680.15,0.97073251]
[1752553278066,0.98593405,681.04,680.16,0.97073251]
[1752553278565,0.98593405,681.06,680.17,0.97073251]
[1752553278767,0.98593405,681.01,680.2,0.97073251]
[1752553279065,0.98593405,681.08,680.21,0.97073251]
[1752553279367,0.98593405,681.08,680.22,0.97073251]
[1752553279967,1.3145787,681.26,679.35,0.25563987]
[1752553279968,0.98593405,681.07,680.24,0.97073251]
[1752553280166,0.98593405,681.12,680.28,0.97073251]
[1752553280461,0.98593405,681.12,680.29,0.97073251]
[1752553281966,0.98593405,681.11,680.28,0.97073251]
[1752553282162,0.98593405,681.09,680.26,0.97073251]
[1752553282666,0.98593405,681.09,680.27,0.97073251]
[1752553283063,0.98593405,681.09,680.26,0.97073251]
[1752553283263,0.98593405,681.08,680.27,0.97073251]
[1752553283568,0.98593405,681.06,680.28,0.97073251]
[1752553284766,0.98593405,681.07,680.28,0.97073251]
[1752553287166,0.98593405,681.07,680.29,0.97073251]
[1752553287670,0.98593405,681.07,680.28,0.97073251]
[1752553287967,0.98593405,681.06,680.27,0.97073251]
[1752553288170,0.98593405,681.06,680.28,0.97073251]
[1752553288473,0.98593405,681.07,680.28,0.97073251]
[1752553289367,0.98593405,681.06,680.28,0.97073251]
[1752553290272,0.98593405,681.06,680.29,0.97073251]
[1752553291270,0.98593405,681.05,680.29,0.97073251]
[1752553291870,0.98593405,681.1,680.29,0.97073251]
[1752553292076,0.98593405,681.16,680.32,0.97073251]
[1752553292270,0.98593405,681.15,680.32,0.97073251]
[1752553292875,0.98593405,681.16,680.33,0.97073251]
[1752553293175,0.98593405,681.14,680.34,0.97073251]
[1752553293870,0.98593405,681.15,680.33,0.97073251]
[1752553294172,0.25554038,681.42,679.35,0.25563987]
[1752553294173,0.98593405,681.14,680.34,0.97073251]
[1752553295276,0.98593405,681.15,680.34,0.97073251]
[1752553296473,0.98593405,681.14,680.35,0.97073251]
[1752553297774,0.98593405,681.14,680.34,0.97073251]
[1752553298179,0.98593405,681.11,680.37,0.97073251]
[1752553298879,0.98593405,681.12,680.36,0.97073251]
[1752553300178,0.98593405,681.13,680.36,0.97073251]
[1752553300779,0.98593405,681.12,680.36,0.97073251]
[1752553301374,0.98593405,681.19,680.31,0.97073251]
[1752553301574,0.98593405,681.18,680.31,0.97073251]
[1752553302579,0.98593405,681.21,680.34,0.97073251]
[1752553302881,0.98593405,681.2,680.33,0.97073251]
[1752553303481,0.98593405,681.19,680.32,0.97073251]
[1752553304680,0.98593405,681.18,680.32,0.97073251]
[1752553308385,0.98593405,681.19,680.32,0.97073251]
[1752553308680,0.98593405,681.19,680.31,0.97073251]
[1752553308885,0.98593405,681.18,680.32,0.97073251]
[1752553311186,0.98593405,681.22,680.3,0.97073251]
[1752553311387,0.98593405,681.19,680.32,0.97073251]
[1752553312883,0.98593405,681.2,680.32,0.97073251]
[1752553313287,0.98593405,681.19,680.32,0.97073251]
[1752553313586,0.98593405,681.19,680.34,0.97073251]
[1752553313982,0.98593405,681.28,680.28,0.97073251]
[1752553314689,0.98593405,681.28,680.27,0.97073251]
[1752553315088,0.98593405,681.26,680.24,0.97073251]
[1752553315588,0.98593405,681.25,680.25,0.97073251]
[1752553316887,0.98593405,681.23,680.23,0.97073251]
[1752553318190,0.98593405,681.22,680.23,0.97073251]
[1752553318691,0.98593405,681.22,679.35,0.25563987]
[1752553318692,0.98593405,681.21,680.24,0.97073251]
[1752553318887,0.98593405,681.21,680.25,0.97073251]
[1752553319088,0.98593405,681.2,680.26,0.97073251]
[1752553319388,0.98593405,681.14,680.29,0.97073251]
[1752553322389,0.98593405,681.13,680.3,0.97073251]
[1752553322993,0.98593405,681.12,680.31,0.97073251]
[1752553323293,0.98593405,681.1,680.31,0.97073251]
[1752553323489,0.98593405,681.1,680.32,0.97073251]
[1752553324295,0.98593405,681.11,680.32,0.97073251]
[1752553325398,0.98593405,681.05,680.36,0.97073251]
[1752553325598,0.98593405,681.1,680.33,0.97073251]
[1752553325998,0.98593405,681.06,680.36,0.97073251]
[1752553327698,0.98593405,681.07,680.36,0.97073251]
[1752553328501,0.98593405,681.06,680.36,0.97073251]
[1752553329101,0.98593405,681.04,680.37,0.97073251]
[1752553329400,0.98593405,681.04,680.38,0.97073251]
[1752553329701,0.98593405,681.03,680.38,0.97073251]
[1752553330805,0.98593405,681.02,680.39,0.97073251]
[1752553332005,0.98593405,681.03,680.39,0.97073251]
[1752553332201,0.98593405,681.02,680.39,0.97073251]
[1752553332401,0.98593405,681.03,680.38,0.97073251]
[1752553332704,0.98593405,681.02,680.4,0.97073251]
[1752553332905,0.98593405,681.02,680.39,0.97073251]
[1752553333306,0.98593405,681.12,680.45,0.97073251]
[1752553333500,0.98593405,681.13,680.45,0.97073251]
[1752553334112,0.98593405,681.2,680.52,0.97073251]
[1752553334305,0.98593405,681.19,680.52,0.97073251]
[1752553334606,0.98593405,681.21,680.52,0.97073251]
[1752553334906,0.98593405,681.21,680.51,0.97073251]
[1752553335802,0.98593405,681.17,680.53,0.97073251]
[1752553336006,0.98593405,681.17,680.54,0.97073251]
[1752553336305,0.98593405,681.17,680.53,0.97073251]
[1752553337307,0.98593405,681.16,680.54,0.97073251]
[1752553337502,0.98593405,681.17,680.54,0.97073251]
[1752553337707,0.98593405,681.17,680.53,0.97073251]
[1752553338004,0.98593405,681.17,680.54,0.97073251]
[1752553338507,0.98593405,681.17,680.53,0.97073251]
[1752553339209,0.98593405,681.17,680.54,0.97073251]
[1752553339507,0.98593405,681.18,680.53,0.97073251]
[1752553339708,0.98593405,681.17,680.53,0.97073251]
[1752553340308,0.98593405,681.15,680.51,0.97073251]
[1752553340708,0.98593405,681.15,680.5,0.97073251]
[1752553341303,1.9718681,681.46,680.19,1.941465]
[1752553341504,0.25546909,681.6,679.35,0.25563987]
[1752553344406,0.98808953,681.41,680.47,0.9716783]
[1752553344705,0.25546909,681.6,680.45,0.9716783]
[1752553344706,0.98808953,681.39,680.45,0.9716783]
[1752553345410,0.98808953,681.4,680.45,0.9716783]
[1752553346310,0.98808953,681.4,680.44,0.9716783]
[1752553347706,0.98808953,681.41,680.44,0.9716783]
[1752553348304,0.98808953,681.41,680.45,0.9716783]
[1752553348705,0.98808953,681.41,680.19,1.295571]
[1752553348706,0.98808953,681.41,680.44,0.9716783]
[1752553350312,0.98808953,681.42,680.44,0.9716783]
[1752553350717,0.98808953,681.26,680.51,0.9716783]
[1752553350914,0.98808953,681.21,680.55,0.9716783]
[1752553351312,0.98808953,681.21,680.54,0.9716783]
[1752553352116,0.98808953,681.21,680.55,0.9716783]
[1752553352311,0.98808953,681.22,680.54,0.9716783]
[1752553353217,0.98808953,681.27,680.6,0.9716783]
[1752553353416,0.98808953,681.28,680.59,0.9716783]
[1752553353716,0.98808953,681.3,680.57,0.9716783]
[1752553353914,0.98808953,681.3,680.58,0.9716783]
[1752553354416,0.98808953,681.3,680.57,0.9716783]
[1752553356219,0.98808953,681.31,680.57,0.9716783]
[1752553356419,0.98808953,681.3,680.57,0.9716783]
[1752553358221,0.98808953,681.35,680.54,0.9716783]
[1752553360522,0.98808953,681.35,680.53,0.9716783]
[1752553360824,0.98808953,681.35,680.54,0.9716783]
[1752553361822,0.98808953,681.35,680.53,0.9716783]
[1752553362926,0.98808953,681.35,680.54,0.9716783]
[1752553363126,0.98808953,681.35,680.53,0.9716783]
[1752553363324,0.98808953,681.29,680.49,0.9716783]
[1752553363526,0.98808953,681.3,680.48,0.9716783]
[1752553364324,0.98808953,681.31,680.47,0.9716783]
[1752553364627,0.98808953,681.28,680.5,0.9716783]
[1752553364830,0.98808953,681.29,680.49,0.9716783]
[1752553365022,0.98808953,681.37,680.44,0.9716783]
[1752553365923,0.98808953,681.39,680.43,0.9716783]
[1752553366430,0.98808953,681.31,680.49,0.9716783]
[1752553367828,0.98808953,681.3,680.49,0.9716783]
[1752553368033,0.98808953,681.27,680.52,0.9716783]
[1752553368727,0.98808953,681.27,680.51,0.9716783]
[1752553369430,0.98808953,681.27,680.52,0.9716783]
[1752553369631,0.98808953,681.28,680.51,0.9716783]
[1752553370331,0.98808953,681.3,680.5,0.9716783]
[1752553371528,0.98808953,681.31,680.51,0.9716783]
[1752553371831,0.98808953,681.31,680.33,1.295571]
[1752553371832,0.98808953,681.31,680.5,0.9716783]
[1752553372532,0.98808953,681.31,680.51,0.9716783]
[1752553372832,0.98808953,681.33,680.49,0.9716783]
[1752553373027,0.98808953,681.36,680.51,0.9716783]
[1752553373733,0.98808953,681.41,680.56,0.9716783]
[1752553374132,0.98808953,681.44,680.59,0.9716783]
[1752553374433,0.98808953,681.44,680.58,0.9716783]
[1752553374830,0.98808953,681.44,680.59,0.9716783]
[1752553375334,0.98808953,681.5,680.64,0.9716783]
[1752553375729,0.98808953,681.52,680.65,0.9716783]
[1752553376337,0.98808953,681.53,680.64,0.9716783]
[1752553376835,0.98808953,681.53,680.65,0.9716783]
[1752553377329,0.98808953,681.55,680.66,0.9716783]
[1752553377530,0.98808953,681.6,680.69,0.9716783]
[1752553377734,0.98808953,681.58,680.71,0.9716783]
[1752553378432,0.98808953,681.59,680.7,0.9716783]
[1752553378635,0.98808953,681.59,680.71,0.9716783]
[1752553379336,0.98808953,681.58,680.71,0.9716783]
[1752553379533,0.98808953,681.58,680.7,0.9716783]
[1752553380134,0.98808953,681.56,680.68,0.9716783]
[1752553380338,0.98808953,681.55,680.68,0.9716783]
[1752553380639,0.98808953,681.5,680.66,0.9716783]
[1752553381740,0.98808953,681.49,680.67,0.9716783]
[1752553382139,0.98808953,681.52,680.69,0.9716783]
[1752553382840,0.98808953,681.52,680.68,0.9716783]
[1752553383134,0.98808953,681.58,680.65,0.9716783]
[1752553383535,0.98808953,681.58,680.64,0.9716783]
[1752553384036,0.98808953,681.57,680.63,0.9716783]
[1752553384440,0.98808953,681.56,680.63,0.9716783]
[1752553385140,0.98808953,681.56,680.62,0.9716783]
[1752553385539,0.98808953,681.57,680.63,0.9716783]
[1752553386040,0.98808953,681.57,680.64,0.9716783]
[1752553386543,0.98808953,681.58,680.65,0.9716783]
[1752553388245,0.98808953,681.59,680.65,0.9716783]
[1752553388842,0.98808953,681.58,680.64,0.9716783]
[1752553389045,0.98808953,681.59,680.64,0.9716783]
[1752553389344,0.98808953,681.6,680.63,0.9716783]
[1752553390144,0.98808953,681.6,680.64,0.9716783]
[1752553390747,0.98808953,681.59,680.64,0.9716783]
[1752553391043,0.98808953,681.58,680.64,0.9716783]
[1752553391245,0.98808953,681.59,680.64,0.9716783]
[1752553391441,0.98808953,681.59,680.65,0.9716783]
[1752553392047,0.98808953,681.58,680.64,0.9716783]
[1752553392549,0.98808953,681.58,680.65,0.9716783]
[1752553392848,0.98808953,681.55,680.66,0.9716783]
[1752553393648,0.98808953,681.55,680.67,0.9716783]
[1752553394049,0.98808953,681.54,680.68,0.9716783]
[1752553394651,0.98808953,681.53,680.68,0.9716783]
[1752553395150,0.98808953,681.48,680.62,0.9716783]
[1752553395348,0.98808953,681.49,680.61,0.9716783]
[1752553395549,0.98808953,681.49,680.62,0.9716783]
[1752553397751,0.98808953,681.47,680.63,0.9716783]
[1752553398751,1.3174527,681.64,680.63,0.9716783]
[1752553398752,0.98808953,681.48,680.63,0.9716783]
[1752553399050,0.98808953,681.47,680.63,0.9716783]
[1752553401757,0.98808953,681.45,680.65,0.9716783]
[1752553403957,0.98808953,681.5,680.62,0.9716783]
[1752553405462,0.98808953,681.49,680.62,0.9716783]
[1752553405762,0.98808953,681.5,680.62,0.9716783]
[1752553405959,0.98808953,681.49,680.62,0.9716783]
[1752553406263,0.98808953,681.52,680.6,0.9716783]
[1752553406563,0.98808953,681.49,680.57,0.9716783]
[1752553408163,0.98808953,681.48,680.56,0.9716783]
[1752553408463,0.98808953,681.48,680.57,0.9716783]
[1752553408664,0.98808953,681.49,680.56,0.9716783]
[1752553409464,0.98808953,681.48,680.57,0.9716783]
[1752553409664,0.98808953,681.5,680.55,0.9716783]
[1752553409963,0.98808953,681.46,680.55,0.9716783]
[1752553410165,0.98808953,681.45,680.54,0.9716783]
[1752553410464,0.98808953,681.38,680.47,0.9716783]
[1752553410659,0.98808953,681.38,680.48,0.9716783]
[1752553413366,0.98808953,681.37,680.47,0.9716783]
[1752553413965,0.98808953,681.35,680.46,0.9716783]
[1752553415861,0.25540722,681.81,679.94,0.25540816]
[1752553415862,0.98808953,681.33,680.48,0.9716783]
[1752553417166,0.98808953,681.35,680.47,0.9716783]
[1752553417362,0.98808953,681.35,680.48,0.9716783]
[1752553417964,0.98808953,681.39,680.52,0.9716783]
[1752553418165,0.98808953,681.4,680.52,0.9716783]
[1752553418567,0.98808953,681.39,680.53,0.9716783]
[1752553419568,0.98808953,681.35,680.55,0.9716783]
[1752553419866,0.98808953,681.36,680.56,0.9716783]
[1752553420369,0.98808953,681.35,680.56,0.9716783]
[1752553420568,0.98808953,681.36,680.56,0.9716783]
[1752553420867,0.98808953,681.38,680.59,0.9716783]
[1752553424373,0.98808953,681.37,680.6,0.9716783]
[1752553425873,0.98808953,681.37,680.61,0.9716783]
[1752553426576,0.98808953,681.32,680.61,0.9716783]
[1752553426777,0.98808953,681.32,680.64,0.9716783]
[1752553427274,0.98808953,681.31,680.64,0.9716783]
[1752553427474,0.98808953,681.31,680.65,0.9716783]
[1752553427873,0.98808953,681.32,680.64,0.9716783]
[1752553428073,0.98808953,681.32,680.65,0.9716783]
[1752553430280,0.98808953,681.31,680.65,0.9716783]
[1752553430474,0.98808953,681.31,680.66,0.9716783]
[1752553430679,0.98808953,681.31,679.94,0.25540816]
[1752553430680,0.98808953,681.33,680.64,0.9716783]
[1752553430879,0.98808953,681.33,680.65,0.9716783]
[1752553431179,0.98808953,681.33,680.66,0.9716783]
[1752553431880,0.98808953,681.32,680.66,0.9716783]
[1752553432180,0.98808953,681.35,680.69,0.9716783]
[1752553432680,0.98808953,681.37,680.68,0.9716783]
[1752553432879,0.98808953,681.38,680.7,0.9716783]
[1752553433380,0.98808953,681.38,680.69,0.9716783]
[1752553433677,0.98808953,681.38,680.68,0.9716783]
[1752553434480,0.98808953,681.32,680.6,0.9716783]
[1752553434980,0.98808953,681.32,680.61,0.9716783]
[1752553436580,0.98808953,681.33,680.6,0.9716783]
[1752553436779,0.98808953,681.32,680.6,0.9716783]
[1752553437277,0.98808953,681.32,680.61,0.9716783]
[1752553437778,0.98808953,681.33,680.6,0.9716783]
[1752553438282,0.98808953,681.31,680.6,0.9716783]
[1752553438477,0.98808953,681.35,680.58,0.9716783]
[1752553439179,0.98808953,681.33,680.57,0.9716783]
[1752553439579,0.98808953,681.3,680.54,0.9716783]
[1752553440786,0.98808953,681.28,680.55,0.9716783]
[1752553441785,0.98808953,681.3,680.54,0.9716783]
[1752553442186,0.98808953,681.3,680.53,0.9716783]
[1752553443085,0.98808953,681.32,680.55,0.9716783]
[1752553444182,1.3174527,681.5,679.94,0.25540816]